bitfinex/quotes_BTCUSD_20241004
["timestamp","ask_amount","ask_price","bid_price","bid_amount"]
[1728059497987,0.06115169,62149.0,62148.0,0.160906]
[1728059497988,0.06015169,62149.0,62148.0,0.160906]
[1728059498232,0.06015169,62149.0,62148.0,0.161906]
[1728059498669,0.06015169,62149.0,62148.0,0.160906]
[1728059498884,0.06015169,62149.0,62148.0,0.40427224]
[1728059499097,0.06015169,62149.0,62148.0,0.160906]
[1728059501432,0.06097169,62149.0,62148.0,0.160906]
[1728059503828,0.06097169,62149.0,62148.0,0.238306]
[1728059504028,0.04819377,62160.0,62148.0,0.238306]
[1728059504029,0.04818162,62168.0,62167.0,0.160856]
[1728059504224,0.09636714,62173.0,62172.0,0.162844]
[1728059504225,0.24336624,62173.0,62172.0,0.162844]
[1728059504538,0.24386624,62180.0,62174.0,0.002]
[1728059504539,0.0005,62180.0,62174.0,0.002]
[1728059504764,0.24336624,62187.0,62172.0,0.18605998]
[1728059504765,0.00082,62195.0,62172.0,0.18605998]
[1728059504766,0.08420024,62200.0,62188.0,0.321605]
[1728059504981,0.08420024,62200.0,62186.0,0.18605998]
[1728059505446,0.08420024,62200.0,62187.0,0.18605998]
[1728059505689,0.08420024,62200.0,62190.0,0.24336624]
[1728059505915,0.08420024,62200.0,62197.0,0.160777]
[1728059506148,0.08420024,62200.0,62190.0,0.24336624]
[1728059506378,0.08420024,62200.0,62196.0,0.16078]
[1728059506605,0.08420024,62200.0,62190.0,0.24336624]
[1728059506606,0.08420024,62200.0,62194.0,0.321572]
[1728059506829,0.08420024,62200.0,62192.0,0.18605998]
[1728059507053,0.08420024,62200.0,62192.0,0.50763998]
[1728059507276,0.08520024,62200.0,62192.0,0.32158]
[1728059507490,0.08420024,62200.0,62195.0,0.160783]
[1728059507757,0.08420024,62200.0,62190.0,0.24336624]
[1728059507979,0.08420024,62200.0,62199.0,0.160774]
[1728059508221,0.08420024,62200.0,62197.0,0.160776]
[1728059508448,0.02521076,62198.0,62197.0,0.160776]
[1728059508674,0.08420024,62200.0,62199.0,0.160774]
[1728059508902,0.08420024,62200.0,62197.0,0.321557]
[1728059509103,0.08420024,62200.0,62199.0,0.160774]
[1728059509104,0.08520024,62200.0,62199.0,0.160774]
[1728059509311,0.08520024,62200.0,62197.0,0.160779]
[1728059509580,0.08520024,62200.0,62194.0,0.321574]
[1728059509820,0.08520024,62200.0,62192.0,0.24336624]
[1728059510057,0.08520024,62200.0,62193.0,0.321576]
[1728059510312,0.08420024,62200.0,62196.0,0.16078]
[1728059510544,0.08420024,62200.0,62198.0,0.160775]
[1728059510777,0.08520024,62200.0,62199.0,0.160774]
[1728059511245,0.08620024,62200.0,62199.0,0.160774]
[1728059511482,0.11041127,62200.0,62199.0,0.160774]
[1728059511722,0.08520024,62200.0,62199.0,0.160774]
[1728059511965,0.08620024,62200.0,62199.0,0.160774]
[1728059512204,0.08520024,62200.0,62199.0,0.160774]
[1728059512443,0.08620024,62200.0,62199.0,0.160774]
[1728059512977,0.08520024,62200.0,62199.0,0.160774]
[1728059513205,0.08520024,62200.0,62199.0,0.162774]
[1728059513443,0.08620024,62200.0,62199.0,0.162774]
[1728059513675,0.08420024,62200.0,62199.0,0.162774]
[1728059513878,0.08501924,62200.0,62199.0,0.167774]
[1728059514607,0.08501924,62200.0,62199.0,0.165774]
[1728059514838,0.11022877,62200.0,62199.0,0.169774]
[1728059515073,0.11022877,62200.0,62199.0,0.171774]
[1728059515311,0.11022877,62200.0,62199.0,0.169774]
[1728059516020,0.11022877,62200.0,62199.0,0.171774]
[1728059516788,0.11022877,62200.0,62199.0,0.22193247]
[1728059517012,0.11022877,62200.0,62199.0,0.169774]
[1728059517739,0.11022877,62200.0,62199.0,0.162774]
[1728059518205,0.08501924,62200.0,62199.0,0.23471563]
[1728059518915,0.08501924,62200.0,62199.0,0.187774]
[1728059519148,0.00589,62206.0,62202.0,0.38109598]
[1728059519393,0.24356624,62219.0,62202.0,0.38109598]
[1728059519394,0.24336624,62218.0,62211.0,0.195013]
[1728059519632,0.24336624,62218.0,62211.0,0.38096298]
[1728059519870,0.0002,62219.0,62211.0,0.160743]
[1728059520107,0.0002,62219.0,62211.0,0.37907298]
[1728059520372,0.0002,62219.0,62211.0,0.62243922]
[1728059520626,0.0002,62219.0,62211.0,0.34869298]
[1728059520867,0.0002,62219.0,62211.0,0.36269298]
[1728059521114,0.0002,62219.0,62211.0,0.39496298]
[1728059521358,0.0002,62219.0,62211.0,0.37480298]
[1728059521596,0.02520159,62218.0,62211.0,0.34869298]
[1728059521830,0.02520159,62218.0,62211.0,0.36269298]
[1728059522298,0.02520159,62218.0,62211.0,0.34869298]
[1728059522539,0.02520159,62218.0,62211.0,0.39529166]
[1728059522773,0.02520159,62218.0,62211.0,0.44156166]
[1728059523033,0.0002,62219.0,62211.0,0.45556166]
[1728059523298,0.0002,62219.0,62211.0,0.81104837]
[1728059523552,0.0002,62219.0,62211.0,0.79277837]
[1728059524012,0.0002,62219.0,62211.0,0.76666837]
[1728059524372,0.0002,62219.0,62211.0,1.02403461]
[1728059524613,0.0002,62219.0,62218.0,0.57994498]
[1728059524865,0.0247662,62226.0,62225.0,0.26849]
[1728059525101,0.0005,62232.0,62231.0,0.47164098]
[1728059525581,0.0005,62232.0,62231.0,0.44876771]
[1728059525830,0.0005,62232.0,62231.0,0.91844849]
[1728059526069,0.0005,62232.0,62231.0,0.72757265]
[1728059526319,0.0005,62232.0,62231.0,0.97093889]
[1728059526561,0.0004,62239.0,62233.0,0.292956]
[1728059526800,0.0004,62239.0,62233.0,0.51939727]
[1728059527053,0.0004,62239.0,62233.0,0.57377767]
[1728059527806,0.0005,62253.0,62240.0,0.50388798]
[1728059527807,0.24336624,62251.0,62240.0,0.50388798]
[1728059528063,0.0005,62253.0,62240.0,0.50388798]
[1728059528064,0.0005,62253.0,62252.0,0.322797]
[1728059528304,0.0005,62253.0,62252.0,0.486007]
[1728059528541,0.0005,62253.0,62252.0,0.5128674]
[1728059529005,0.0005,62253.0,62252.0,0.67605411]
[1728059529244,0.0005,62253.0,62252.0,0.95169035]
[1728059529456,0.08743431,62260.0,62259.0,0.44856898]
[1728059529457,0.05824492,62260.0,62259.0,0.44856898]
[1728059529697,0.05824492,62260.0,62259.0,0.260619]
[1728059529943,0.05824492,62260.0,62256.0,0.421251]
[1728059530183,0.05824492,62260.0,62256.0,0.321251]
[1728059530448,0.05824492,62260.0,62249.0,0.1]
[1728059530449,0.05824492,62260.0,62259.0,0.160619]
[1728059530659,0.05824492,62260.0,62253.0,0.24336624]
[1728059530893,0.05824492,62260.0,62259.0,0.170619]
[1728059531107,0.08342839,62260.0,62259.0,0.32569571]
[1728059531323,0.05824492,62260.0,62259.0,0.160619]
[1728059532039,0.05824492,62260.0,62256.0,0.322253]
[1728059532040,0.05824492,62260.0,62257.0,0.160622]
[1728059532292,0.05824492,62260.0,62256.0,0.001]
[1728059532293,0.05824492,62260.0,62259.0,0.012]
[1728059532747,0.05824492,62260.0,62259.0,0.172619]
[1728059533041,0.05824492,62260.0,62259.0,0.174509]
[1728059533266,0.05824492,62260.0,62258.0,0.321243]
[1728059533267,0.05824492,62260.0,62253.0,0.013]
[1728059533268,0.160627,62256.0,62253.0,0.013]
[1728059533510,0.160627,62256.0,62240.0,0.24336624]
[1728059533511,0.160629,62255.0,62254.0,0.24336624]
[1728059533769,0.41649408,62260.0,62247.0,0.24336624]
[1728059533997,0.160633,62254.0,62247.0,0.24336624]
[1728059534247,0.13954492,62260.0,62247.0,0.24336624]
[1728059534472,0.13954492,62260.0,62259.0,0.005]
[1728059534688,0.05824492,62260.0,62259.0,0.172619]
[1728059535163,0.05824492,62260.0,62255.0,0.160628]
[1728059535373,0.05824492,62260.0,62258.0,0.16062]
[1728059535623,0.05824492,62260.0,62257.0,0.321244]
[1728059535875,0.05824492,62260.0,62259.0,0.160619]
[1728059536841,0.05824492,62260.0,62257.0,0.321244]
[1728059537074,0.05824492,62260.0,62259.0,0.160619]
[1728059537713,0.05906592,62260.0,62247.0,0.24525624]
[1728059537983,0.00850732,62259.0,62254.0,0.24336624]
[1728059538211,0.05906592,62260.0,62258.0,0.16062]
[1728059538672,0.05906592,62260.0,62243.0,0.00189]
[1728059538893,0.05906592,62260.0,62255.0,0.160629]
[1728059539147,0.05906592,62260.0,62250.0,0.32128]
[1728059539355,0.001,62259.0,62247.0,0.321297]
[1728059539603,0.001,62259.0,62253.0,0.160634]
[1728059539775,0.05906592,62260.0,62241.0,0.1]
[1728059540002,0.05906592,62260.0,62249.0,0.160643]
[1728059540003,0.21968292,62260.0,62249.0,0.160643]
[1728059540257,0.21968292,62260.0,62250.0,0.321281]
[1728059540258,0.06006592,62260.0,62250.0,0.321281]
[1728059540489,0.06006592,62260.0,62253.0,0.160633]
[1728059540718,0.06006592,62260.0,62253.0,0.321268]
[1728059540962,0.06006592,62260.0,62255.0,0.160627]
[1728059541170,0.06006592,62260.0,62251.0,0.321275]
[1728059541383,0.06006592,62260.0,62248.0,0.24336624]
[1728059541384,0.05906592,62260.0,62259.0,0.160619]
[1728059541632,0.06006592,62260.0,62259.0,0.160619]
[1728059541846,0.08525166,62260.0,62259.0,0.160619]
[1728059542317,0.08425166,62260.0,62259.0,0.160619]
[1728059542560,0.08525166,62260.0,62259.0,0.160619]
[1728059542990,0.08425166,62260.0,62259.0,0.160619]
[1728059543219,0.00082,62263.0,62260.0,0.61574834]
[1728059543494,0.00082,62263.0,62262.0,0.160611]
[1728059544154,0.00082,62263.0,62262.0,0.162501]
[1728059544373,0.00082,62263.0,62262.0,0.21229649]
[1728059544596,0.24349308,62278.0,62274.0,0.16058]
[1728059545289,0.00012684,62278.0,62274.0,0.16058]
[1728059545507,0.01702876,62275.0,62274.0,0.16058]
[1728059545962,0.01702876,62275.0,62274.0,0.16658]
[1728059546460,0.01702876,62275.0,62274.0,0.16758]
[1728059546703,0.04220792,62275.0,62274.0,0.16758]
[1728059546916,0.04220792,62275.0,62274.0,0.17458]
[1728059547141,0.04220792,62275.0,62274.0,0.16758]
[1728059549025,0.04220792,62275.0,62274.0,0.17458]
[1728059550230,0.04220792,62275.0,62274.0,0.223972]
[1728059551157,0.04220792,62275.0,62274.0,0.225862]
[1728059551404,0.00012684,62278.0,62275.0,0.1]
[1728059551620,0.00012684,62278.0,62275.0,1.182868]
[1728059551621,6.6e-07,62276.0,62275.0,1.182868]
[1728059551872,0.00012684,62278.0,62277.0,0.285462]
[1728059552109,0.00012684,62278.0,62277.0,0.49804071]
[1728059552552,8.4e-07,62279.0,62278.0,0.56160916]
[1728059552766,8.4e-07,62279.0,62278.0,0.80635787]
[1728059553211,8.4e-07,62279.0,62278.0,0.87660877]
[1728059553481,0.24336624,62296.0,62278.0,0.87660877]
[1728059553482,0.24336624,62296.0,62291.0,0.193096]
[1728059553789,0.24336624,62296.0,62291.0,0.68252387]
[1728059554149,0.02516962,62302.0,62291.0,0.70680408]
[1728059554398,0.02516962,62302.0,62291.0,0.78552387]
[1728059554645,0.24397567,62309.0,62291.0,0.78542387]
[1728059554891,0.24397567,62309.0,62291.0,0.64905387]
[1728059555112,0.24397567,62309.0,62291.0,0.68102387]
[1728059555337,0.24397567,62309.0,62291.0,0.53143716]
[1728059555826,0.24397567,62309.0,62291.0,0.53103716]
[1728059556046,0.24397567,62309.0,62291.0,0.46744516]
[1728059556298,0.24397567,62309.0,62291.0,0.52968424]
[1728059556522,0.24397567,62309.0,62291.0,0.70687095]
[1728059556749,0.02516784,62295.0,62291.0,0.54318424]
[1728059556964,0.24397567,62309.0,62291.0,0.54318424]
[1728059557187,0.00330902,62292.0,62291.0,0.54318424]
[1728059557437,0.00330902,62292.0,62291.0,0.70637095]
[1728059557675,0.00330902,62292.0,62291.0,0.69237095]
[1728059557897,0.00330902,62292.0,62291.0,0.70637095]
[1728059558130,0.00330902,62292.0,62291.0,0.72037095]
[1728059558354,0.00330902,62292.0,62291.0,0.69237095]
[1728059558614,0.00330902,62292.0,62291.0,0.48291424]
[1728059558870,0.00330902,62292.0,62291.0,0.21996508]
[1728059559347,0.0822,62304.0,62296.0,0.160523]
[1728059560006,1.35529823,62297.0,62296.0,0.20919109]
[1728059560445,1.35529823,62297.0,62296.0,0.21008109]
[1728059560795,1.33012987,62297.0,62296.0,0.21008109]
[1728059561206,1.33012987,62297.0,62296.0,0.20919109]
[1728059561416,1.33012987,62297.0,62296.0,0.20905431]
[1728059561658,1.33012987,62297.0,62296.0,0.22105431]
[1728059561886,1.33012987,62297.0,62296.0,0.22194431]
[1728059562101,1.33012987,62297.0,62296.0,0.22794431]
[1728059562525,1.33012987,62297.0,62296.0,0.161413]
[1728059562803,1.33012987,62297.0,62296.0,0.170413]
[1728059563492,1.35529798,62297.0,62296.0,0.170413]
[1728059563930,1.35529798,62297.0,62296.0,0.178413]
[1728059564152,1.35529798,62297.0,62296.0,0.21781666]
[1728059564378,1.35529798,62297.0,62296.0,0.20982735]
[1728059564623,1.35529798,62297.0,62296.0,0.22681521]
[1728059564852,1.35529798,62297.0,62296.0,0.177523]
[1728059565093,1.46622997,62297.0,62296.0,0.178523]
[1728059565336,1.49065087,62297.0,62296.0,0.009]
[1728059565589,1.41272987,62297.0,62287.0,0.24336624]
[1728059565793,0.160526,62295.0,62294.0,0.24336624]
[1728059566018,0.160524,62296.0,62289.0,0.160539]
[1728059566224,0.160526,62295.0,62289.0,0.160539]
[1728059566441,0.160524,62296.0,62289.0,0.160539]
[1728059566695,0.160529,62294.0,62287.0,0.24336624]
[1728059566920,0.02517284,62295.0,62292.0,0.160532]
[1728059567140,0.02517284,62295.0,62287.0,0.160544]
[1728059567374,0.02517284,62295.0,62279.0,0.24336624]
[1728059567375,0.36338817,62294.0,62279.0,0.24336624]
[1728059567576,0.59801216,62294.0,62281.0,0.321124]
[1728059567797,0.27694916,62294.0,62287.0,0.001]
[1728059568061,0.27694916,62294.0,62286.0,0.24336624]
[1728059568062,0.02517284,62295.0,62294.0,0.160529]
[1728059568517,0.013,62295.0,62294.0,0.160529]
[1728059568994,0.0124,62295.0,62294.0,0.160529]
[1728059569224,0.0122,62295.0,62294.0,0.160529]
[1728059569494,0.012,62295.0,62294.0,0.161419]
[1728059569729,1.32992987,62297.0,62295.0,0.00089]
[1728059569971,1.32982987,62297.0,62296.0,0.160523]
[1728059570236,1.32962987,62297.0,62296.0,0.161413]
[1728059570469,1.32922987,62297.0,62296.0,0.161413]
[1728059570715,1.32882987,62297.0,62296.0,0.161413]
[1728059570945,1.32872987,62297.0,62296.0,0.161413]
[1728059571181,1.32842987,62297.0,62296.0,0.160523]
[1728059571417,1.32822987,62297.0,62296.0,0.160523]
[1728059571654,1.35309852,62297.0,62296.0,0.160523]
[1728059571895,1.32762987,62297.0,62296.0,0.163523]
[1728059572115,1.32732987,62297.0,62296.0,0.163523]
[1728059572363,1.32702987,62297.0,62296.0,0.163523]
[1728059572591,1.32692987,62297.0,62296.0,0.163523]
[1728059572825,1.32662987,62297.0,62296.0,0.163523]
[1728059573062,1.32652987,62297.0,62296.0,0.163523]
[1728059573284,1.32642987,62297.0,62296.0,0.163523]
[1728059573505,1.35149869,62297.0,62296.0,0.167523]
[1728059573746,1.35139869,62297.0,62296.0,0.167523]
[1728059574466,1.35221869,62297.0,62296.0,0.167523]
[1728059575897,1.35221869,62297.0,62296.0,0.168413]
[1728059576600,1.35221869,62297.0,62296.0,0.164413]
[1728059577096,1.35221869,62297.0,62296.0,0.169413]
[1728059577345,1.35221869,62297.0,62296.0,0.165523]
[1728059577819,1.35221869,62297.0,62296.0,0.170523]
[1728059578546,1.35221869,62297.0,62296.0,0.165523]
[1728059579017,1.35221869,62297.0,62296.0,0.006]
[1728059579273,1.35221869,62297.0,62296.0,0.001]
[1728059579560,1.68363969,62297.0,62296.0,0.001]
[1728059580022,1.68263969,62297.0,62296.0,0.001]
[1728059580279,1.70981351,62297.0,62296.0,0.001]
[1728059580536,1.54929251,62297.0,62295.0,0.61574834]
[1728059580837,0.161633,62296.0,62295.0,0.61574834]
[1728059581310,1.54929251,62297.0,62295.0,0.61574834]
[1728059581549,1.46299251,62297.0,62296.0,0.40388924]
[1728059581784,1.38439251,62297.0,62296.0,0.160523]
[1728059582291,1.37939251,62297.0,62296.0,0.160523]
[1728059582531,1.37739251,62297.0,62296.0,0.160523]
[1728059582776,1.37739251,62297.0,62296.0,0.40388924]
[1728059582777,1.38139251,62297.0,62296.0,0.40388924]
[1728059583019,1.35621869,62297.0,62296.0,0.160523]
[1728059583252,1.35221869,62297.0,62296.0,0.161413]
[1728059583504,1.32704987,62297.0,62296.0,0.161413]
[1728059583754,1.32704987,62297.0,62296.0,0.169413]
[1728059583755,1.33704987,62297.0,62296.0,0.169413]
[1728059584005,1.32704987,62297.0,62296.0,0.167523]
[1728059584243,1.32804987,62297.0,62296.0,0.169523]
[1728059584483,1.32804987,62297.0,62296.0,0.178523]
[1728059584923,1.35321869,62297.0,62296.0,0.178523]
[1728059585182,1.35221869,62297.0,62296.0,0.41288924]
[1728059585383,1.32804987,62297.0,62296.0,0.176523]
[1728059585783,1.32804987,62297.0,62296.0,0.167523]
[1728059586061,1.32804987,62297.0,62296.0,0.174523]
[1728059586511,1.32804987,62297.0,62296.0,0.167523]
[1728059586939,1.32704987,62297.0,62296.0,0.172523]
[1728059587160,1.32804987,62297.0,62296.0,0.180523]
[1728059587375,1.32804987,62297.0,62296.0,0.160523]
[1728059587798,1.32804987,62297.0,62296.0,0.169523]
[1728059588279,1.35421868,62297.0,62296.0,0.178523]
[1728059588533,1.32804987,62297.0,62296.0,0.178523]
[1728059588784,1.32804987,62297.0,62296.0,0.180163]
[1728059588785,1.353219,62297.0,62296.0,0.180163]
[1728059589019,1.354219,62297.0,62296.0,0.18800796]
[1728059589573,1.354219,62297.0,62296.0,0.17900796]
[1728059589794,1.354219,62297.0,62296.0,0.18700796]
[1728059590036,1.352219,62297.0,62296.0,0.00964]
[1728059590252,1.58884,62297.0,62296.0,0.00564]
[1728059590666,1.58884,62297.0,62296.0,0.00964]
[1728059591066,1.58884,62297.0,62296.0,0.00564]
[1728059591277,1.58884,62297.0,62296.0,0.00164]
[1728059591513,1.434319,62297.0,62296.0,0.163163]
[1728059591755,1.368219,62297.0,62296.0,0.00364]
[1728059592207,1.34304987,62297.0,62296.0,0.164163]
[1728059593116,1.33304987,62297.0,62296.0,0.163163]
[1728059593339,1.32704987,62297.0,62296.0,0.162163]
[1728059593569,1.33204987,62297.0,62296.0,0.163053]
[1728059593779,1.33104987,62297.0,62296.0,0.163053]
[1728059594141,1.33704987,62297.0,62296.0,0.40652924]
[1728059594362,1.34304987,62297.0,62296.0,0.163163]
[1728059594564,1.34304987,62297.0,62296.0,0.164053]
[1728059594719,1.34804987,62297.0,62296.0,0.164053]
[1728059594974,1.33804987,62297.0,62296.0,0.164053]
[1728059595848,1.33204987,62297.0,62296.0,0.163053]
[1728059596078,1.33204987,62297.0,62296.0,0.166163]
[1728059596321,1.33304987,62297.0,62296.0,0.176163]
[1728059596554,1.32704987,62297.0,62296.0,0.166163]
[1728059596756,1.3522205,62297.0,62296.0,0.171163]
[1728059597002,1.3522205,62297.0,62296.0,0.01064]
[1728059597003,1.3532205,62297.0,62296.0,0.01064]
[1728059597237,1.5137415,62297.0,62296.0,0.00164]
[1728059597491,1.5137415,62297.0,62296.0,0.01064]
[1728059597738,1.5127415,62297.0,62296.0,0.01064]
[1728059597971,1.5157415,62297.0,62296.0,0.01064]
[1728059598181,1.3552205,62297.0,62296.0,0.01064]
[1728059598629,1.5157415,62297.0,62296.0,0.01064]
[1728059598865,1.5157415,62297.0,62296.0,0.00164]
[1728059599297,1.5147415,62297.0,62296.0,0.00164]
[1728059599507,1.5237415,62297.0,62296.0,0.00264]
[1728059599727,1.5217415,62297.0,62296.0,0.00264]
[1728059600191,1.5277415,62297.0,62296.0,0.00364]
[1728059600617,1.57584933,62297.0,62296.0,0.00364]
[1728059600829,1.5277415,62297.0,62296.0,0.00364]
[1728059601079,1.3672205,62297.0,62296.0,0.40752924]
[1728059601367,1.3672205,62297.0,62296.0,0.164163]
[1728059601623,1.3672205,62297.0,62296.0,0.40752924]
[1728059601898,1.3672205,62297.0,62296.0,0.164163]
[1728059602136,1.34204987,62297.0,62296.0,0.164163]
[1728059602623,1.33604987,62297.0,62296.0,0.163163]
[1728059602852,1.32704987,62297.0,62296.0,0.162163]
[1728059603288,1.32804987,62297.0,62296.0,0.171053]
[1728059603518,1.35221942,62297.0,62296.0,0.40741924]
[1728059603773,1.35221942,62297.0,62296.0,0.168053]
[1728059604020,1.32704987,62297.0,62296.0,0.164053]
[1728059604486,1.32704987,62297.0,62296.0,0.163053]
[1728059604704,1.32704987,62297.0,62296.0,0.253553]
[1728059604925,1.32704987,62297.0,62296.0,0.41673971]
[1728059605161,1.32704987,62297.0,62296.0,0.253553]
[1728059605423,1.32704987,62297.0,62296.0,0.295823]
[1728059605634,1.32704987,62297.0,62296.0,0.290823]
[1728059605852,1.32704987,62297.0,62296.0,0.285823]
[1728059606077,1.32804987,62297.0,62296.0,0.301823]
[1728059606292,1.32804987,62297.0,62296.0,0.293823]
[1728059606536,1.32904987,62297.0,62296.0,0.307823]
[1728059606765,1.3273187,62297.0,62296.0,0.299823]
[1728059606991,1.3273187,62297.0,62296.0,0.177053]
[1728059607222,1.30647493,62297.0,62296.0,0.191053]
[1728059607442,1.15076969,62297.0,62296.0,0.191053]
[1728059607664,1.05904037,62297.0,62296.0,0.191053]
[1728059607913,1.04281409,62297.0,62296.0,0.191053]
[1728059608360,1.01764542,62297.0,62296.0,0.191053]
[1728059608598,0.40189708,62297.0,62296.0,0.223323]
[1728059609280,0.40189708,62297.0,62296.0,0.191053]
[1728059610614,0.40189708,62297.0,62296.0,0.223323]
[1728059613105,0.40189708,62297.0,62296.0,0.191053]
[1728059613763,0.42706356,62297.0,62296.0,0.191053]
[1728059613970,0.40189708,62297.0,62296.0,0.191053]
[1728059614168,0.40189708,62297.0,62296.0,0.223323]
[1728059616516,0.42706265,62297.0,62296.0,0.223323]
[1728059616719,0.40189708,62297.0,62296.0,0.223323]
[1728059618176,0.37672913,62297.0,62296.0,0.223323]
[1728059619047,0.37672913,62297.0,62296.0,0.498623]
[1728059619527,0.37672913,62297.0,62296.0,0.401623]
[1728059620931,0.37672913,62297.0,62296.0,0.191053]
[1728059621832,0.37672913,62297.0,62296.0,0.177053]
[1728059622087,0.40289662,62297.0,62296.0,0.184163]
[1728059622294,0.40089662,62297.0,62296.0,0.371633]
[1728059622507,0.37572913,62297.0,62296.0,0.371633]
[1728059622723,0.37472913,62297.0,62296.0,0.364523]
[1728059622939,0.37572913,62297.0,62296.0,0.372523]
[1728059623202,0.37672913,62297.0,62296.0,0.480523]
[1728059623616,0.37572913,62297.0,62296.0,0.472523]
[1728059624107,0.37572913,62297.0,62296.0,0.295323]
[1728059624365,0.37472913,62297.0,62296.0,0.263053]
[1728059624576,0.40089546,62297.0,62296.0,0.277053]
[1728059624792,0.37572913,62297.0,62296.0,0.277053]
[1728059625011,0.37572913,62297.0,62296.0,0.177053]
[1728059625475,0.37572913,62297.0,62296.0,0.196053]
[1728059625476,0.37772913,62297.0,62296.0,0.196053]
[1728059625918,0.37672913,62297.0,62296.0,0.188053]
[1728059626379,0.39989584,62297.0,62296.0,0.163053]
[1728059626602,0.37472913,62297.0,62296.0,0.163053]
[1728059628116,0.37572913,62297.0,62296.0,0.172053]
[1728059628623,0.37472913,62297.0,62296.0,0.173053]
[1728059628880,0.37672913,62297.0,62296.0,0.181053]
[1728059629088,0.37672913,62297.0,62296.0,0.171053]
[1728059629312,0.37772913,62297.0,62296.0,0.179053]
[1728059631176,0.37772913,62297.0,62296.0,0.36523971]
[1728059631383,0.37772913,62297.0,62296.0,0.46523971]
[1728059631614,0.377501,62297.0,62296.0,0.46523971]
[1728059631977,0.377501,62297.0,62296.0,0.51265805]
[1728059632607,0.377501,62297.0,62296.0,0.279053]
[1728059632819,0.377501,62297.0,62296.0,0.32646843]
[1728059633591,0.40266572,62297.0,62296.0,0.32646843]
[1728059634116,0.377501,62297.0,62296.0,0.51265514]
[1728059635510,0.377501,62297.0,62296.0,0.48965514]
[1728059635736,0.377501,62297.0,62296.0,0.49465514]
[1728059635987,0.377501,62297.0,62296.0,0.49465579]
[1728059636435,0.377501,62297.0,62296.0,0.52692579]
[1728059637084,0.377501,62297.0,62296.0,0.36373908]
[1728059637313,0.375501,62297.0,62296.0,0.35573908]
[1728059637532,0.375501,62297.0,62296.0,0.34273908]
[1728059637533,0.374501,62297.0,62296.0,0.34273908]
[1728059637770,0.374501,62297.0,62296.0,0.36173908]
[1728059638241,0.374501,62297.0,62296.0,0.37573908]
[1728059638468,0.374501,62297.0,62296.0,0.35673908]
[1728059638933,0.374501,62297.0,62296.0,0.37073908]
[1728059639385,0.374501,62297.0,62296.0,0.323323]
[1728059639657,0.374501,62297.0,62296.0,0.37073908]
[1728059640784,0.39966622,62297.0,62296.0,0.37073908]
[1728059641050,0.374501,62297.0,62296.0,0.37073908]
[1728059642312,0.374501,62297.0,62296.0,0.50770661]
[1728059643783,0.374501,62297.0,62296.0,0.52956106]
[1728059644278,0.374501,62297.0,62296.0,0.69274777]
[1728059644522,0.374501,62297.0,62296.0,0.86404777]
[1728059645677,0.374501,62297.0,62296.0,1.34561777]
[1728059647047,0.374501,62297.0,62296.0,1.36861777]
[1728059647520,0.374501,62297.0,62296.0,1.4160117]
[1728059647521,0.278189,62297.0,62296.0,1.4160117]
[1728059647751,0.00060943,62309.0,62307.0,0.161385]
[1728059647974,0.00060943,62309.0,62307.0,0.34576861]
[1728059649104,0.00060943,62309.0,62307.0,0.35476861]
[1728059649552,0.00060943,62309.0,62307.0,0.61795532]
[1728059649807,0.00060943,62309.0,62307.0,1.09944532]
[1728059650987,0.00060943,62309.0,62307.0,1.10844532]
[1728059651281,0.00060943,62309.0,62307.0,0.94525861]
[1728059656078,0.0001329,62316.0,62307.0,0.94525861]
[1728059656079,0.04840339,62315.0,62314.0,0.160477]
[1728059656338,0.079861,62330.0,62318.0,0.283467]
[1728059656339,8e-07,62319.0,62318.0,0.283467]
[1728059656581,8e-07,62319.0,62318.0,1.14559732]
[1728059656824,0.000361,62330.0,62321.0,0.321619]
[1728059656825,1e-06,62322.0,62321.0,0.321619]
[1728059657064,0.000361,62330.0,62321.0,0.321619]
[1728059657065,0.000361,62330.0,62329.0,0.193598]
[1728059657298,0.000361,62330.0,62329.0,1.22498832]
[1728059657536,0.0005,62332.0,62331.0,0.216593]
[1728059657810,0.0005,62332.0,62331.0,0.37977971]
[1728059658271,0.0005,62332.0,62331.0,0.58127971]
[1728059658493,0.0005,62332.0,62331.0,1.06257971]
[1728059658972,0.0005,62332.0,62331.0,0.788893]
[1728059659622,0.0005,62332.0,62331.0,0.97507971]
[1728059660517,0.0005,62332.0,62331.0,0.95207971]
[1728059660999,0.0005,62332.0,62331.0,0.96507971]
[1728059661229,0.0005,62332.0,62331.0,0.669623]
[1728059661686,0.01414043,62337.0,62336.0,0.16042]
[1728059661927,0.12219464,62337.0,62336.0,0.16042]
[1728059662149,0.12219464,62337.0,62336.0,0.56697295]
[1728059662150,0.03929464,62337.0,62336.0,0.56697295]
[1728059662371,0.03929464,62337.0,62336.0,0.32360671]
[1728059662610,0.00082,62338.0,62337.0,0.192688]
[1728059662826,0.00082,62338.0,62337.0,0.84213471]
[1728059663040,0.00082,62338.0,62337.0,0.86513471]
[1728059663270,0.00082,62338.0,62337.0,0.96513471]
[1728059663920,0.00082,62338.0,62337.0,0.96602471]
[1728059664138,0.00082,62338.0,62337.0,0.96102471]
[1728059664367,0.00082,62338.0,62337.0,0.93802471]
[1728059664623,0.0004,62339.0,62338.0,0.489175]
[1728059664872,1e-06,62339.0,62338.0,1.13861171]
[1728059665111,1e-06,62339.0,62338.0,1.13361171]
[1728059665610,1e-06,62339.0,62338.0,1.11061171]
[1728059665850,1e-06,62339.0,62338.0,1.13361171]
[1728059667025,1e-06,62339.0,62338.0,1.20313771]
[1728059667263,1e-06,62339.0,62338.0,1.19413771]
[1728059667505,0.06052606,62347.0,62344.0,0.19356]
[1728059667733,0.06052606,62347.0,62344.0,1.14533032]
[1728059668434,0.06052606,62347.0,62344.0,1.15033032]
[1728059669254,0.24376624,62359.0,62344.0,1.15033032]
[1728059669255,9.6e-07,62354.0,62353.0,0.161267]
[1728059669498,9.6e-07,62354.0,62353.0,1.14523732]
[1728059670413,0.0004,62359.0,62358.0,0.293524]
[1728059670641,0.0004,62359.0,62358.0,1.12218432]
[1728059671072,0.0004,62359.0,62358.0,1.16700448]
[1728059671294,0.02554159,62379.0,62378.0,0.161202]
[1728059671295,0.00379267,62379.0,62378.0,0.161202]
[1728059671569,0.18573864,62392.0,62380.0,0.160307]
[1728059671803,0.0913,62389.0,62386.0,0.160292]
[1728059673067,0.0913,62389.0,62372.0,0.00089]